[Event "Early-Titled-Tuesday-Blitz-April-02-2024"]
[Site "Chess.com"]
[Date "2024.04.02"]
[Round "2"]
[White "ChessQueen"]
[Black "SultaiC"]
[Result "1-0"]
[WhiteElo "2719"]
[BlackElo "2504"]
[TimeControl "180+1"]
[EndTime "8:18:20 PDT"]
[Termination "ChessQueen won by checkmate"]

1. Nf3 {[%clk 0:03:00.9]} 1... Nf6 {[%clk 0:02:59.7]} 2. g3 {[%clk 0:03:01.1]}
2... e6 {[%clk 0:02:59.1]} 3. Bg2 {[%clk 0:02:59.4]} 3... d5 {[%clk 0:02:59.1]}
4. d3 {[%clk 0:02:59]} 4... Be7 {[%clk 0:02:59.7]} 5. O-O {[%clk 0:02:58.3]}
5... O-O {[%clk 0:03:00.6]} 6. a4 {[%clk 0:02:58.4]} 6... c5 {[%clk 0:03:00.3]}
7. Bf4 {[%clk 0:02:58.6]} 7... Nc6 {[%clk 0:03:00]} 8. e4 {[%clk 0:02:58.7]}
8... dxe4 {[%clk 0:02:58.8]} 9. dxe4 {[%clk 0:02:58.9]} 9... Nxe4 {[%clk
0:02:57.2]} 10. Ne5 {[%clk 0:02:56.1]} 10... Nxe5 {[%clk 0:02:53.6]} 11. Bxe5
{[%clk 0:02:54.3]} 11... Nf6 {[%clk 0:02:52.5]} 12. Qe2 {[%clk 0:02:49.5]} 12...
Qb6 {[%clk 0:02:47.6]} 13. Na3 {[%clk 0:02:48.9]} 13... Bd7 {[%clk 0:02:31.2]}
14. Rfd1 {[%clk 0:02:20.5]} 14... Bc6 {[%clk 0:02:28]} 15. Nc4 {[%clk
0:02:15.5]} 15... Qa6 {[%clk 0:02:26.8]} 16. Bf1 {[%clk 0:02:15]} 16... b6
{[%clk 0:02:19.2]} 17. Qd2 {[%clk 0:01:58.2]} 17... Qb7 {[%clk 0:02:05.2]} 18.
Nd6 {[%clk 0:01:51.5]} 18... Bxd6 {[%clk 0:02:04.4]} 19. Qxd6 {[%clk 0:01:43.9]}
19... Nd5 {[%clk 0:01:59.4]} 20. Bf4 {[%clk 0:01:39.9]} 20... Rad8 {[%clk
0:01:46.5]} 21. Qe5 {[%clk 0:01:39.9]} 21... Nb4 {[%clk 0:01:42.1]} 22. Rdc1
{[%clk 0:01:23.8]} 22... Rd7 {[%clk 0:01:28]} 23. Qe2 {[%clk 0:01:11.7]} 23...
Rfd8 {[%clk 0:01:22.2]} 24. a5 {[%clk 0:00:49.6]} 24... Bf3 {[%clk 0:01:17.4]}
25. Qb5 {[%clk 0:00:45.3]} 25... Bc6 {[%clk 0:01:10.1]} 26. Qe2 {[%clk
0:00:45.3]} 26... b5 {[%clk 0:01:07.7]} 27. Be3 {[%clk 0:00:40.9]} 27... c4
{[%clk 0:01:04.6]} 28. Bc5 {[%clk 0:00:38.7]} 28... Na6 {[%clk 0:00:44.5]} 29.
Be3 {[%clk 0:00:38.2]} 29... Bf3 {[%clk 0:00:44.5]} 30. Qe1 {[%clk 0:00:38.1]}
30... h6 {[%clk 0:00:36.7]} 31. b3 {[%clk 0:00:38.1]} 31... cxb3 {[%clk
0:00:35.7]} 32. cxb3 {[%clk 0:00:39]} 32... Nc7 {[%clk 0:00:34.4]} 33. Bc5
{[%clk 0:00:36.6]} 33... Nd5 {[%clk 0:00:32.9]} 34. a6 {[%clk 0:00:36.8]} 34...
Qa8 {[%clk 0:00:32.4]} 35. Bxb5 {[%clk 0:00:35.3]} 35... Rc7 {[%clk 0:00:32.7]}
36. Bf1 {[%clk 0:00:35.1]} 36... Rdc8 {[%clk 0:00:27.4]} 37. Bd4 {[%clk
0:00:34.7]} 37... Rd7 {[%clk 0:00:25.5]} 38. Qe5 {[%clk 0:00:34.1]} 38... Nf6
{[%clk 0:00:23.4]} 39. h3 {[%clk 0:00:32.3]} 39... Rd5 {[%clk 0:00:23.1]} 40.
Qe3 {[%clk 0:00:32.4]} 40... Rf5 {[%clk 0:00:17.4]} 41. Bxa7 {[%clk 0:00:29.4]}
41... Nd5 {[%clk 0:00:16.8]} 42. Qd4 {[%clk 0:00:28.3]} 42... e5 {[%clk
0:00:16.5]} 43. Rxc8+ {[%clk 0:00:28.1]} 43... Qxc8 {[%clk 0:00:17.4]} 44. Qc5
{[%clk 0:00:28.7]} 44... Qe6 {[%clk 0:00:16.7]} 45. Bb8 {[%clk 0:00:27.1]} 45...
Nf4 {[%clk 0:00:15]} 46. a7 {[%clk 0:00:25.5]} 46... Nxh3+ {[%clk 0:00:14.8]}
47. Bxh3 {[%clk 0:00:25.3]} 47... Rh5 {[%clk 0:00:15.1]} 48. a8=Q {[%clk
0:00:21]} 48... Bxa8 {[%clk 0:00:13.4]} 49. Rxa8 {[%clk 0:00:19.7]} 49... Qxh3
{[%clk 0:00:13.3]} 50. Bxe5+ {[%clk 0:00:19.8]} 50... Kh7 {[%clk 0:00:13.6]} 51.
Rh8+ {[%clk 0:00:18.7]} 51... Kg6 {[%clk 0:00:12.6]} 52. Qc6+ {[%clk 0:00:18.4]}
52... f6 {[%clk 0:00:09.9]} 53. Qe4+ {[%clk 0:00:15]} 53... Rf5 {[%clk
0:00:03.9]} 54. Bf4 {[%clk 0:00:13.4]} 54... Kf7 {[%clk 0:00:02.8]} 55. Qe8#
{[%clk 0:00:12.9]} 1-0

[Event "Early-Titled-Tuesday-Blitz-April-02-2024"]
[Site "Chess.com"]
[Date "2024.04.02"]
[Round "2"]
[White "GodzillaChessYoutube"]
[Black "N_I_Chess"]
[Result "1-0"]
[WhiteElo "2689"]
[BlackElo "2379"]
[TimeControl "180+1"]
[EndTime "8:18:21 PDT"]
[Termination "GodzillaChessYoutube won by checkmate"]

1. c4 {[%clk 0:03:00]} 1... Nf6 {[%clk 0:02:53.2]} 2. Nc3 {[%clk 0:02:57.2]}
2... c5 {[%clk 0:02:15.8]} 3. g3 {[%clk 0:02:54.4]} 3... g6 {[%clk 0:02:13.2]}
4. Bg2 {[%clk 0:02:54.2]} 4... Bg7 {[%clk 0:02:12.5]} 5. e3 {[%clk 0:02:54.4]}
5... O-O {[%clk 0:02:09.2]} 6. Nge2 {[%clk 0:02:54.7]} 6... Nc6 {[%clk
0:02:07.7]} 7. O-O {[%clk 0:02:52.4]} 7... Ne5 {[%clk 0:02:00.1]} 8. b3 {[%clk
0:02:50.2]} 8... Nd3 {[%clk 0:01:51.9]} 9. Ba3 {[%clk 0:02:46.5]} 9... d6 {[%clk
0:01:52.2]} 10. Qb1 {[%clk 0:02:32.6]} 10... Nb4 {[%clk 0:01:43.7]} 11. d4
{[%clk 0:02:12.1]} 11... cxd4 {[%clk 0:01:15.2]} 12. Nxd4 {[%clk 0:02:12.9]}
12... Na6 {[%clk 0:01:11.9]} 13. Rd1 {[%clk 0:02:09.8]} 13... Rb8 {[%clk
0:01:01.7]} 14. Ncb5 {[%clk 0:02:06.5]} 14... Qb6 {[%clk 0:00:57.7]} 15. Rd2
{[%clk 0:01:52]} 15... Bd7 {[%clk 0:00:49.3]} 16. Qd1 {[%clk 0:01:50.3]} 16...
Bc6 {[%clk 0:00:47.4]} 17. Nxc6 {[%clk 0:01:48.1]} 17... bxc6 {[%clk 0:00:48.3]}
18. Nd4 {[%clk 0:01:48.6]} 18... Rfc8 {[%clk 0:00:44.9]} 19. Rc1 {[%clk
0:01:42.4]} 19... c5 {[%clk 0:00:38.9]} 20. Nc2 {[%clk 0:01:37.9]} 20... Nd7
{[%clk 0:00:34.1]} 21. h4 {[%clk 0:01:32.7]} 21... h5 {[%clk 0:00:33.6]} 22. Bh3
{[%clk 0:01:29.8]} 22... Rc7 {[%clk 0:00:33.3]} 23. Rb1 {[%clk 0:01:24.3]} 23...
Bc3 {[%clk 0:00:30.9]} 24. Re2 {[%clk 0:01:17.1]} 24... Bg7 {[%clk 0:00:23.1]}
25. Bb2 {[%clk 0:01:10.4]} 25... Ne5 {[%clk 0:00:23.4]} 26. Bg2 {[%clk
0:01:08.8]} 26... Nb4 {[%clk 0:00:20.6]} 27. Nxb4 {[%clk 0:01:06.2]} 27... Qxb4
{[%clk 0:00:21.5]} 28. Qc2 {[%clk 0:00:47.1]} 28... a5 {[%clk 0:00:20.1]} 29. f4
{[%clk 0:00:20.2]} 29... Ng4 {[%clk 0:00:19.8]} 30. Bxg7 {[%clk 0:00:19.4]}
30... Kxg7 {[%clk 0:00:20.7]} 31. Bf3 {[%clk 0:00:17.6]} 31... Nf6 {[%clk
0:00:20.7]} 32. e4 {[%clk 0:00:17]} 32... e6 {[%clk 0:00:15.7]} 33. Rd1 {[%clk
0:00:15.1]} 33... Rd8 {[%clk 0:00:13.6]} 34. Red2 {[%clk 0:00:14.8]} 34... Ne8
{[%clk 0:00:13]} 35. Qb2+ {[%clk 0:00:14.3]} 35... Kg8 {[%clk 0:00:12.6]} 36. f5
{[%clk 0:00:15.2]} 36... exf5 {[%clk 0:00:11.5]} 37. exf5 {[%clk 0:00:16.1]}
37... Re7 {[%clk 0:00:11.2]} 38. fxg6 {[%clk 0:00:15.8]} 38... fxg6 {[%clk
0:00:12.1]} 39. Bd5+ {[%clk 0:00:16.2]} 39... Kh7 {[%clk 0:00:11]} 40. Rf2
{[%clk 0:00:17.1]} 40... Ng7 {[%clk 0:00:10.5]} 41. Rdf1 {[%clk 0:00:17.2]}
41... Qb8 {[%clk 0:00:08.9]} 42. Qf6 {[%clk 0:00:16.8]} 42... Rde8 {[%clk
0:00:07.3]} 43. Bf7 {[%clk 0:00:16.7]} 43... Re6 {[%clk 0:00:04.3]} 44. Bxg6+
{[%clk 0:00:14.4]} 44... Kh8 {[%clk 0:00:02.8]} 45. Qg5 {[%clk 0:00:12.5]} 45...
Re5 {[%clk 0:00:02.4]} 46. Qh6+ {[%clk 0:00:12.2]} 46... Kg8 {[%clk 0:00:02.3]}
47. Qh7# {[%clk 0:00:13.1]} 1-0

[Event "Early-Titled-Tuesday-Blitz-April-02-2024"]
[Site "Chess.com"]
[Date "2024.04.02"]
[Round "2"]
[White "2346PL"]
[Black "jcibarra"]
[Result "0-1"]
[WhiteElo "2535"]
[BlackElo "2979"]
[TimeControl "180+1"]
[EndTime "8:18:21 PDT"]
[Termination "jcibarra won on time"]

1. d4 {[%clk 0:03:00.9]} 1... Nf6 {[%clk 0:02:59.4]} 2. Bg5 {[%clk 0:02:59.2]}
2... d5 {[%clk 0:02:57.8]} 3. e3 {[%clk 0:02:57.5]} 3... c5 {[%clk 0:02:57.2]}
4. Nf3 {[%clk 0:02:55.2]} 4... Nc6 {[%clk 0:02:56.7]} 5. c3 {[%clk 0:02:53.6]}
5... Ne4 {[%clk 0:02:56.9]} 6. Bf4 {[%clk 0:02:52.5]} 6... Qb6 {[%clk
0:02:57.5]} 7. Qc1 {[%clk 0:02:51.8]} 7... Bf5 {[%clk 0:02:54.1]} 8. Nh4 {[%clk
0:02:50]} 8... Bd7 {[%clk 0:02:52.3]} 9. f3 {[%clk 0:02:42.5]} 9... Nf6 {[%clk
0:02:43.1]} 10. g4 {[%clk 0:02:42.2]} 10... h6 {[%clk 0:02:42.7]} 11. Bg3 {[%clk
0:02:38.7]} 11... Rc8 {[%clk 0:02:41.9]} 12. Qd2 {[%clk 0:02:37.5]} 12... e6
{[%clk 0:02:39.6]} 13. Bd3 {[%clk 0:02:33.1]} 13... Be7 {[%clk 0:02:22.3]} 14.
Ng2 {[%clk 0:02:30.9]} 14... a6 {[%clk 0:01:59.9]} 15. O-O {[%clk 0:02:16.5]}
15... cxd4 {[%clk 0:01:54.7]} 16. exd4 {[%clk 0:02:16]} 16... e5 {[%clk
0:01:54.9]} 17. Kh1 {[%clk 0:02:06.2]} 17... exd4 {[%clk 0:01:53.4]} 18. Bf2
{[%clk 0:02:02]} 18... dxc3 {[%clk 0:01:47.9]} 19. Nxc3 {[%clk 0:02:01.2]} 19...
d4 {[%clk 0:01:47.7]} 20. Ne4 {[%clk 0:01:46]} 20... O-O {[%clk 0:01:44.4]} 21.
Nxf6+ {[%clk 0:01:40.3]} 21... Bxf6 {[%clk 0:01:44.5]} 22. Nf4 {[%clk
0:01:37.6]} 22... Qb4 {[%clk 0:01:31.3]} 23. Qd1 {[%clk 0:01:33.5]} 23... Qd6
{[%clk 0:01:27.4]} 24. Nh5 {[%clk 0:01:28.9]} 24... Ne5 {[%clk 0:01:22.7]} 25.
Bxd4 {[%clk 0:01:04.4]} 25... Nxd3 {[%clk 0:01:15.4]} 26. Nxf6+ {[%clk
0:01:04.3]} 26... gxf6 {[%clk 0:01:15.5]} 27. Qxd3 {[%clk 0:01:04]} 27... Bb5
{[%clk 0:01:16.1]} 28. Qe3 {[%clk 0:00:46.9]} 28... Bxf1 {[%clk 0:01:05.1]} 29.
Rxf1 {[%clk 0:00:46.2]} 29... Rfe8 {[%clk 0:01:05.1]} 30. Qf2 {[%clk 0:00:41.2]}
30... Qf4 {[%clk 0:01:04.3]} 31. Bc3 {[%clk 0:00:37.8]} 31... Rcd8 {[%clk
0:01:02.3]} 32. Kg2 {[%clk 0:00:35.8]} 32... Rd3 {[%clk 0:00:57.6]} 33. Qc2
{[%clk 0:00:25.5]} 33... Ree3 {[%clk 0:00:55.4]} 34. Qf2 {[%clk 0:00:17.4]}
34... Rxf3 {[%clk 0:00:17.8]} 35. Qxf3 {[%clk 0:00:17.3]} 35... Rxf3 {[%clk
0:00:18.7]} 36. Rxf3 {[%clk 0:00:17.5]} 36... Qe4 {[%clk 0:00:19.3]} 37. Kg3
{[%clk 0:00:16]} 37... h5 {[%clk 0:00:15.2]} 38. h3 {[%clk 0:00:15.2]} 38... h4+
{[%clk 0:00:14.2]} 39. Kf2 {[%clk 0:00:15.6]} 39... Qc2+ {[%clk 0:00:12.9]} 40.
Ke3 {[%clk 0:00:13.3]} 40... Qc1+ {[%clk 0:00:13.1]} 41. Kf2 {[%clk 0:00:11.3]}
41... Qc2+ {[%clk 0:00:10.5]} 42. Ke3 {[%clk 0:00:11.2]} 42... Qc1+ {[%clk
0:00:07.9]} 43. Kf2 {[%clk 0:00:11.2]} 43... Qh1 {[%clk 0:00:07.4]} 44. Bxf6
{[%clk 0:00:06]} 44... Qh2+ {[%clk 0:00:07.8]} 45. Ke3 {[%clk 0:00:05.6]} 45...
Qg1+ {[%clk 0:00:08.1]} 46. Ke2 {[%clk 0:00:03]} 46... Qb1 {[%clk 0:00:07.7]}
47. Bc3 {[%clk 0:00:02.5]} 47... Qxa2 {[%clk 0:00:06.9]} 48. Rf4 {[%clk
0:00:02.5]} 48... Qb1 {[%clk 0:00:06.3]} 49. Rf5 {[%clk 0:00:02.1]} 49... Qe4+
{[%clk 0:00:06]} 50. Kf2 {[%clk 0:00:02.2]} 50... Kf8 {[%clk 0:00:05.4]} 0-1

[Event "Early-Titled-Tuesday-Blitz-April-02-2024"]
[Site "Chess.com"]
[Date "2024.04.02"]
[Round "2"]
[White "SipkeErnst"]
[Black "Larina_Maria"]
[Result "1-0"]
[WhiteElo "2680"]
[BlackElo "2315"]
[TimeControl "180+1"]
[EndTime "8:18:24 PDT"]
[Termination "SipkeErnst won on time"]

1. Nf3 {[%clk 0:03:00]} 1... f5 {[%clk 0:02:59.9]} 2. d3 {[%clk 0:02:59.2]} 2...
Nc6 {[%clk 0:02:56.1]} 3. e4 {[%clk 0:02:58.6]} 3... d6 {[%clk 0:02:55.7]} 4.
Nc3 {[%clk 0:02:57.9]} 4... e5 {[%clk 0:02:55.2]} 5. g3 {[%clk 0:02:22.3]} 5...
Nf6 {[%clk 0:02:54.7]} 6. Bg2 {[%clk 0:02:22.2]} 6... Be7 {[%clk 0:02:54.7]} 7.
exf5 {[%clk 0:02:20.7]} 7... Bxf5 {[%clk 0:02:54.1]} 8. d4 {[%clk 0:02:21]} 8...
exd4 {[%clk 0:02:25.6]} 9. Nxd4 {[%clk 0:02:20.7]} 9... Nxd4 {[%clk 0:02:26.3]}
10. Qxd4 {[%clk 0:02:21.2]} 10... c6 {[%clk 0:02:24.8]} 11. O-O {[%clk
0:02:03.1]} 11... O-O {[%clk 0:02:19.7]} 12. Qa4 {[%clk 0:01:57]} 12... d5
{[%clk 0:02:13.6]} 13. Bf4 {[%clk 0:01:51.9]} 13... Bd6 {[%clk 0:01:59.6]} 14.
Bxd6 {[%clk 0:01:42.9]} 14... Qxd6 {[%clk 0:02:00.5]} 15. Rad1 {[%clk
0:01:42.4]} 15... Bg4 {[%clk 0:01:48.8]} 16. Rd4 {[%clk 0:01:37]} 16... Be6
{[%clk 0:01:42.4]} 17. b4 {[%clk 0:01:31.4]} 17... a6 {[%clk 0:01:37.7]} 18. Qb3
{[%clk 0:01:22.3]} 18... Rae8 {[%clk 0:01:35.5]} 19. a4 {[%clk 0:01:16.9]} 19...
Bd7 {[%clk 0:01:28]} 20. Rd2 {[%clk 0:01:07.6]} 20... Kh8 {[%clk 0:01:24.2]} 21.
b5 {[%clk 0:01:01.2]} 21... axb5 {[%clk 0:01:24.1]} 22. axb5 {[%clk 0:01:01]}
22... Qc5 {[%clk 0:00:46.3]} 23. Na4 {[%clk 0:00:53.5]} 23... Qxb5 {[%clk
0:00:43.1]} 24. Qxb5 {[%clk 0:00:53.1]} 24... cxb5 {[%clk 0:00:44]} 25. Nc3
{[%clk 0:00:45.5]} 25... Bc6 {[%clk 0:00:43.6]} 26. Nxd5 {[%clk 0:00:37.7]}
26... Bxd5 {[%clk 0:00:40]} 27. Bxd5 {[%clk 0:00:37.7]} 27... Nxd5 {[%clk
0:00:40.9]} 28. Rxd5 {[%clk 0:00:37.2]} 28... Re2 {[%clk 0:00:22.4]} 29. Rxb5
{[%clk 0:00:36.3]} 29... Rxc2 {[%clk 0:00:22.4]} 30. Rxb7 {[%clk 0:00:36.6]}
30... h6 {[%clk 0:00:21.4]} 31. h4 {[%clk 0:00:36.3]} 31... h5 {[%clk
0:00:20.1]} 32. Rb5 {[%clk 0:00:34.5]} 32... g6 {[%clk 0:00:19.9]} 33. Rb7
{[%clk 0:00:34.9]} 33... Re2 {[%clk 0:00:18.7]} 34. Kg2 {[%clk 0:00:34.3]} 34...
Rd2 {[%clk 0:00:18.7]} 35. Rb3 {[%clk 0:00:33]} 35... Kg7 {[%clk 0:00:17.1]} 36.
Re3 {[%clk 0:00:30.5]} 36... Rf7 {[%clk 0:00:15.9]} 37. Re6 {[%clk 0:00:30.2]}
37... Rc2 {[%clk 0:00:15.9]} 38. Rd6 {[%clk 0:00:30.1]} 38... Rb2 {[%clk
0:00:15.8]} 39. Rc6 {[%clk 0:00:30]} 39... Ra2 {[%clk 0:00:15.9]} 40. Rcc1
{[%clk 0:00:29.8]} 40... Rd2 {[%clk 0:00:15.9]} 41. Rce1 {[%clk 0:00:29.1]}
41... Rc2 {[%clk 0:00:15.8]} 42. Re3 {[%clk 0:00:29]} 42... Rd2 {[%clk 0:00:16]}
43. Rf3 {[%clk 0:00:29.3]} 43... Re7 {[%clk 0:00:13.8]} 44. Ra1 {[%clk 0:00:28]}
44... Rc2 {[%clk 0:00:12.4]} 45. Ra6 {[%clk 0:00:21.7]} 45... Rce2 {[%clk
0:00:12.3]} 46. Rff6 {[%clk 0:00:20.4]} 46... Kh7 {[%clk 0:00:05.4]} 47. Rxg6
{[%clk 0:00:20.1]} 47... Rf7 {[%clk 0:00:04]} 48. Rh6+ {[%clk 0:00:20.3]} 48...
Kg7 {[%clk 0:00:04.3]} 49. Rag6+ {[%clk 0:00:20.7]} 49... Kf8 {[%clk 0:00:04.6]}
50. Rf6 {[%clk 0:00:21.4]} 50... Kg7 {[%clk 0:00:03.3]} 51. Rhg6+ {[%clk
0:00:18.5]} 51... Kf8 {[%clk 0:00:02.5]} 52. Rxf7+ {[%clk 0:00:18.8]} 52... Kxf7
{[%clk 0:00:03.4]} 53. Rg5 {[%clk 0:00:19.5]} 53... Kf6 {[%clk 0:00:01.3]} 54.
Rxh5 {[%clk 0:00:19.6]} 54... Kg6 {[%clk 0:00:02.2]} 55. Rg5+ {[%clk 0:00:19.4]}
1-0

[Event "Early-Titled-Tuesday-Blitz-April-02-2024"]
[Site "Chess.com"]
[Date "2024.04.02"]
[Round "2"]
[White "pfalcon1949"]
[Black "YaWaleriy"]
[Result "0-1"]
[WhiteElo "1947"]
[BlackElo "2424"]
[TimeControl "180+1"]
[EndTime "8:18:24 PDT"]
[Termination "YaWaleriy won on time"]

1. e4 {[%clk 0:03:00.9]} 1... e5 {[%clk 0:02:59.6]} 2. Nf3 {[%clk 0:02:59.5]}
2... Nc6 {[%clk 0:02:59.4]} 3. Nc3 {[%clk 0:02:59.5]} 3... Nf6 {[%clk
0:02:58.7]} 4. Nxe5 {[%clk 0:02:59.7]} 4... Nxe5 {[%clk 0:02:54.5]} 5. d4 {[%clk
0:02:59.4]} 5... d6 {[%clk 0:02:54.3]} 6. dxe5 {[%clk 0:02:57.4]} 6... dxe5
{[%clk 0:02:54.4]} 7. Qxd8+ {[%clk 0:02:56.8]} 7... Kxd8 {[%clk 0:02:54.9]} 8.
Bg5 {[%clk 0:02:56.9]} 8... Be7 {[%clk 0:02:54.4]} 9. O-O-O+ {[%clk 0:02:56.1]}
9... Bd7 {[%clk 0:02:45.4]} 10. Bc4 {[%clk 0:02:51.1]} 10... Rf8 {[%clk
0:02:42.8]} 11. f3 {[%clk 0:02:44.9]} 11... c6 {[%clk 0:02:42.3]} 12. Rhe1
{[%clk 0:02:35.2]} 12... Kc7 {[%clk 0:02:29.4]} 13. Kb1 {[%clk 0:02:34.5]} 13...
Rad8 {[%clk 0:02:27.2]} 14. Rd2 {[%clk 0:02:27]} 14... h6 {[%clk 0:02:24.2]} 15.
Be3 {[%clk 0:02:25.3]} 15... b5 {[%clk 0:02:19.6]} 16. Bb3 {[%clk 0:02:19]}
16... a6 {[%clk 0:02:14.7]} 17. Red1 {[%clk 0:02:18.2]} 17... Bb4 {[%clk
0:02:10.1]} 18. Rd3 {[%clk 0:02:03.4]} 18... Nh5 {[%clk 0:01:57.2]} 19. Ne2
{[%clk 0:01:59.4]} 19... Be7 {[%clk 0:01:55.2]} 20. g3 {[%clk 0:01:48.9]} 20...
Nf6 {[%clk 0:01:48.9]} 21. c4 {[%clk 0:01:37.4]} 21... Be6 {[%clk 0:01:17.5]}
22. cxb5 {[%clk 0:01:17]} 22... axb5 {[%clk 0:01:16.8]} 23. Rxd8 {[%clk
0:01:12.4]} 23... Rxd8 {[%clk 0:01:12.9]} 24. Rxd8 {[%clk 0:01:11.9]} 24... Bxd8
{[%clk 0:01:12.9]} 25. Bxe6 {[%clk 0:01:10.4]} 25... fxe6 {[%clk 0:01:13.4]} 26.
Kc2 {[%clk 0:01:10.2]} 26... Be7 {[%clk 0:01:09.8]} 27. Kc3 {[%clk 0:01:08.9]}
27... c5 {[%clk 0:01:08.3]} 28. b3 {[%clk 0:01:03.8]} 28... Kc6 {[%clk
0:01:07.9]} 29. a4 {[%clk 0:01:01]} 29... b4+ {[%clk 0:00:57.7]} 30. Kc4 {[%clk
0:00:55.1]} 30... Ne8 {[%clk 0:00:49.1]} 31. Kd3 {[%clk 0:00:48.1]} 31... Nd6
{[%clk 0:00:46.7]} 32. Nc1 {[%clk 0:00:45.7]} 32... Nb7 {[%clk 0:00:45.8]} 33.
Kc4 {[%clk 0:00:42]} 33... Na5+ {[%clk 0:00:45.5]} 34. Kd3 {[%clk 0:00:41.1]}
34... Bd6 {[%clk 0:00:44.7]} 35. Kc2 {[%clk 0:00:41.3]} 35... c4 {[%clk
0:00:39.1]} 36. bxc4 {[%clk 0:00:32.8]} 36... Nxc4 {[%clk 0:00:39.1]} 37. Bf2
{[%clk 0:00:30.8]} 37... Na5 {[%clk 0:00:18]} 38. Nb3 {[%clk 0:00:29.9]} 38...
Nc4 {[%clk 0:00:15.5]} 39. h3 {[%clk 0:00:24.5]} 39... h5 {[%clk 0:00:14]} 40.
h4 {[%clk 0:00:23.9]} 40... g6 {[%clk 0:00:13.7]} 41. g4 {[%clk 0:00:23.8]}
41... Be7 {[%clk 0:00:11]} 42. a5 {[%clk 0:00:11.5]} 42... Kb5 {[%clk
0:00:09.9]} 43. Kd3 {[%clk 0:00:08.7]} 43... Nxa5 {[%clk 0:00:07.1]} 44. Nxa5
{[%clk 0:00:07.6]} 44... Kxa5 {[%clk 0:00:07.3]} 45. Kc4 {[%clk 0:00:07.7]}
45... Ka4 {[%clk 0:00:07.3]} 46. Bg3 {[%clk 0:00:07]} 46... b3 {[%clk
0:00:05.4]} 47. Bxe5 {[%clk 0:00:06.5]} 47... Bxh4 {[%clk 0:00:05.2]} 48. gxh5
{[%clk 0:00:06.6]} 48... gxh5 {[%clk 0:00:04.4]} 49. Bb2 {[%clk 0:00:05.8]}
49... Be7 {[%clk 0:00:04]} 50. Be5 {[%clk 0:00:01.5]} 50... h4 {[%clk
0:00:03.6]} 0-1

[Event "Early-Titled-Tuesday-Blitz-April-02-2024"]
[Site "Chess.com"]
[Date "2024.04.02"]
[Round "2"]
[White "djokovic74"]
[Black "MrChessSponge"]
[Result "1/2-1/2"]
[WhiteElo "2752"]
[BlackElo "2573"]
[TimeControl "180+1"]
[EndTime "8:18:27 PDT"]
[Termination "Game drawn by repetition"]

1. e4 {[%clk 0:03:00.9]} 1... c5 {[%clk 0:02:58.2]} 2. Nf3 {[%clk 0:03:01.2]}
2... d6 {[%clk 0:02:55.7]} 3. d4 {[%clk 0:03:01.7]} 3... cxd4 {[%clk 0:02:56.3]}
4. Nxd4 {[%clk 0:03:02.6]} 4... Nf6 {[%clk 0:02:55.6]} 5. Nc3 {[%clk 0:03:03.2]}
5... a6 {[%clk 0:02:53.2]} 6. Be2 {[%clk 0:03:03.3]} 6... e5 {[%clk 0:02:51.8]}
7. Nb3 {[%clk 0:03:03.4]} 7... Be7 {[%clk 0:02:51.8]} 8. O-O {[%clk 0:03:03.6]}
8... O-O {[%clk 0:02:48.5]} 9. Qd3 {[%clk 0:03:02.5]} 9... Be6 {[%clk
0:02:44.6]} 10. Bd2 {[%clk 0:03:01.2]} 10... Nbd7 {[%clk 0:02:35.7]} 11. Nd5
{[%clk 0:02:59.8]} 11... Bxd5 {[%clk 0:02:32.9]} 12. exd5 {[%clk 0:02:59.6]}
12... Rc8 {[%clk 0:02:28.3]} 13. Be3 {[%clk 0:02:29.9]} 13... Re8 {[%clk
0:02:05.2]} 14. c4 {[%clk 0:02:15.7]} 14... a5 {[%clk 0:01:56.2]} 15. a4 {[%clk
0:02:10.6]} 15... b6 {[%clk 0:01:53.8]} 16. Rac1 {[%clk 0:02:07.6]} 16... Bf8
{[%clk 0:01:52]} 17. Kh1 {[%clk 0:02:06.8]} 17... g6 {[%clk 0:01:43.5]} 18. Bg5
{[%clk 0:01:30.8]} 18... h6 {[%clk 0:01:37.1]} 19. Bd2 {[%clk 0:01:30.1]} 19...
Bg7 {[%clk 0:01:34]} 20. Qg3 {[%clk 0:01:28]} 20... Ne4 {[%clk 0:01:26.3]} 21.
Qd3 {[%clk 0:01:19.3]} 21... Nxd2 {[%clk 0:01:24.3]} 22. Qxd2 {[%clk 0:01:18.6]}
22... f5 {[%clk 0:01:24.1]} 23. Rfe1 {[%clk 0:00:48.7]} 23... Nc5 {[%clk
0:01:17.6]} 24. Nxc5 {[%clk 0:00:48.7]} 24... bxc5 {[%clk 0:01:13.5]} 25. f3
{[%clk 0:00:41.9]} 25... Rb8 {[%clk 0:01:11.5]} 26. Rb1 {[%clk 0:00:37.2]} 26...
Rb4 {[%clk 0:01:09.4]} 27. b3 {[%clk 0:00:36.3]} 27... Qf6 {[%clk 0:00:54.3]}
28. Bd3 {[%clk 0:00:35.4]} 28... Reb8 {[%clk 0:00:53.2]} 29. Bc2 {[%clk
0:00:35.1]} 29... Kh7 {[%clk 0:00:51.7]} 30. Qd3 {[%clk 0:00:33.9]} 30... h5
{[%clk 0:00:50.6]} 31. Rf1 {[%clk 0:00:28.5]} 31... Re8 {[%clk 0:00:49.1]} 32.
Rbe1 {[%clk 0:00:27.1]} 32... Bh6 {[%clk 0:00:48.3]} 33. g3 {[%clk 0:00:13.3]}
33... Kg7 {[%clk 0:00:47.9]} 34. Kg2 {[%clk 0:00:13.7]} 34... h4 {[%clk
0:00:46.5]} 35. g4 {[%clk 0:00:11.7]} 35... Rf8 {[%clk 0:00:35.3]} 36. gxf5
{[%clk 0:00:08.1]} 36... gxf5 {[%clk 0:00:34.1]} 37. Rg1 {[%clk 0:00:08.7]}
37... Bf4 {[%clk 0:00:28.7]} 38. Kh1+ {[%clk 0:00:08.1]} 38... Kh8 {[%clk
0:00:21.8]} 39. Qf1 {[%clk 0:00:07.1]} 39... Rb7 {[%clk 0:00:20]} 40. Qh3 {[%clk
0:00:07.2]} 40... Rg7 {[%clk 0:00:19.8]} 41. Rxg7 {[%clk 0:00:07.5]} 41... Kxg7
{[%clk 0:00:19.8]} 42. Rg1+ {[%clk 0:00:08.1]} 42... Kh8 {[%clk 0:00:20.3]} 43.
Bd3 {[%clk 0:00:03.6]} 43... Rg8 {[%clk 0:00:20.2]} 44. Rxg8+ {[%clk 0:00:03.2]}
44... Kxg8 {[%clk 0:00:21.1]} 45. Bxf5 {[%clk 0:00:02.6]} 45... Qg5 {[%clk
0:00:20.9]} 46. Be6+ {[%clk 0:00:02.5]} 46... Kg7 {[%clk 0:00:20.9]} 47. Bf5
{[%clk 0:00:01.9]} 47... Be3 {[%clk 0:00:21.4]} 48. Qg4 {[%clk 0:00:02.3]} 48...
Qxg4 {[%clk 0:00:21.6]} 49. fxg4 {[%clk 0:00:03]} 49... Kf6 {[%clk 0:00:22.2]}
50. Kg2 {[%clk 0:00:03.1]} 50... Kg5 {[%clk 0:00:22.9]} 51. Kf3 {[%clk
0:00:03.7]} 51... Bf4 {[%clk 0:00:23]} 52. h3 {[%clk 0:00:04.1]} 52... Bd2
{[%clk 0:00:23.1]} 53. Ke4 {[%clk 0:00:04.6]} 53... Bb4 {[%clk 0:00:23.7]} 54.
Bd7 {[%clk 0:00:04.8]} 54... Bc3 {[%clk 0:00:23.4]} 55. Bb5 {[%clk 0:00:05.5]}
55... Bb4 {[%clk 0:00:24.3]} 56. Ba6 {[%clk 0:00:06.2]} 56... Bc3 {[%clk
0:00:24.8]} 57. Bc8 {[%clk 0:00:06.8]} 57... Bb4 {[%clk 0:00:25.7]} 58. Be6
{[%clk 0:00:04.5]} 58... Ba3 {[%clk 0:00:25.9]} 59. Bc8 {[%clk 0:00:05]} 59...
Bb4 {[%clk 0:00:26.8]} 60. Ba6 {[%clk 0:00:05.4]} 60... Ba3 {[%clk 0:00:27.7]}
61. Bc8 {[%clk 0:00:05.1]} 61... Bb4 {[%clk 0:00:28.1]} 1/2-1/2